{"text_format":"3","workbook":"xlsx","n_sheets":3,"sheets":["Informazioni sui dipendenti","Calcolatore buste paga","Singole buste paga"],"not_rendered":{"defined_names":2},"read":"whole","date_system":"1900"}

{"sheet":"Informazioni sui dipendenti","index":0,"n_rows":7,"n_cols":13,"rows_kept":7,"merged":[[1,0,1,12],[2,0,2,5]]}
[]
["Informazioni sui dipendenti"]
["[Nome società]"]
["ID dipendente","Nome dipendente","Retribuzione oraria","Regime fiscale","Indennità (da W-4)","Imposta statale","Imposta sul reddito (percentuale in base all’indennità)","Contributo previdenziale","Contributo per assicurazione sanitaria","Totale ritenute fiscali","Trattenute assicurative","Altre trattenute \nregolari","Totale detrazioni \n(escluse le imposte)"]
[1,"Raffaele Romani",{"v":10,"d":"€ 10.00"},1,4,{"v":0.023,"d":"2.30%"},{"v":0.28,"d":"28.00%"},{"v":0.063,"d":"6.30%"},{"v":0.0145,"d":"1.45%"},{"$f":"Tabella1[[#This Row],[Imposta statale]]+Tabella1[[#This Row],[Imposta sul reddito (percentuale in base all’indennità)]]+Tabella1[[#This Row],[Contributo previdenziale]]+Tabella1[[#This Row],[Contributo per assicurazione sanitaria]]","v":{"v":0.38050000000000006,"d":"38.05%"}},{"v":20,"d":"€ 20.00"},{"v":40,"d":"€ 40.00"},{"$f":"Tabella1[[#This Row],[Trattenute assicurative]]+Tabella1[[#This Row],[Altre trattenute \nregolari]]","v":{"v":60,"d":"€ 60.00"}}]
[2,"Diego Conticini",{"v":13,"d":"€ 13.00"},1,4,{"v":0.023,"d":"2.30%"},{"v":0.28,"d":"28.00%"},{"v":0.063,"d":"6.30%"},{"v":0.0145,"d":"1.45%"},{"$f":"Tabella1[[#This Row],[Imposta statale]]+Tabella1[[#This Row],[Imposta sul reddito (percentuale in base all’indennità)]]+Tabella1[[#This Row],[Contributo previdenziale]]+Tabella1[[#This Row],[Contributo per assicurazione sanitaria]]","v":{"v":0.38050000000000006,"d":"38.05%"}},{"v":20,"d":"€ 20.00"},{"v":52,"d":"€ 52.00"},{"$f":"Tabella1[[#This Row],[Trattenute assicurative]]+Tabella1[[#This Row],[Altre trattenute \nregolari]]","v":{"v":72,"d":"€ 72.00"}}]
[3,"Francesca Bianchi",{"v":10,"d":"€ 10.00"},1,4,{"v":0.023,"d":"2.30%"},{"v":0.28,"d":"28.00%"},{"v":0.063,"d":"6.30%"},{"v":0.0145,"d":"1.45%"},{"$f":"Tabella1[[#This Row],[Imposta statale]]+Tabella1[[#This Row],[Imposta sul reddito (percentuale in base all’indennità)]]+Tabella1[[#This Row],[Contributo previdenziale]]+Tabella1[[#This Row],[Contributo per assicurazione sanitaria]]","v":{"v":0.38050000000000006,"d":"38.05%"}},{"v":20,"d":"€ 20.00"},0,{"$f":"Tabella1[[#This Row],[Trattenute assicurative]]+Tabella1[[#This Row],[Altre trattenute \nregolari]]","v":{"v":20,"d":"€ 20.00"}}]

{"sheet":"Calcolatore buste paga","index":1,"n_rows":7,"n_cols":11,"rows_kept":7,"merged":[[0,0,1,8],[2,0,2,5]]}
["Calcolatore buste paga"]
[{"$nulls":9},"Fine periodo:",{"v":45688,"d":"4568800.00%"}]
[{"$f":"'Informazioni sui dipendenti'!$A$3","v":"[Nome società]"}]
["ID dipendente","Nome dipendente","Ore di lavoro ","Ore di ferie","Ore di malattia","Ore di straordinario","Tariffa straordinario","Retribuzione lorda","Imposte e trattenute ","Altre trattenute","Retribuzione netta"]
[1,{"$f":"VLOOKUP(A5,Tabella1[],2,FALSE)","v":"Raffaele Romani"},{"v":50,"d":"50.00"},{"v":5,"d":"5.00"},{"v":1,"d":"1.00"},null,null,{"$f":"(VLOOKUP(A5,Tabella1[],3,FALSE)*(Tabella2[[#This Row],[Ore di lavoro ]]+Tabella2[[#This Row],[Ore di ferie]]+Tabella2[[#This Row],[Ore di malattia]])+Tabella2[[#This Row],[Ore di straordinario]]*Tabella2[[#This Row],[Tariffa straordinario]])","v":{"v":560,"d":"€ 560.00"}},{"$f":"VLOOKUP(A5,Tabella1[],10,FALSE)*Tabella2[[#This Row],[Retribuzione lorda]]+Tabella1[[#This Row],[Totale detrazioni \n(escluse le imposte)]]","v":{"v":273.08000000000004,"d":"€ 273.08"}},{"v":20,"d":"€ 20.00"},{"$f":"Tabella2[[#This Row],[Retribuzione lorda]]-Tabella2[[#This Row],[Imposte e trattenute ]]-Tabella2[[#This Row],[Altre trattenute]]","v":{"v":266.91999999999996,"d":"€ 266.92"}}]
[2,{"$f":"VLOOKUP(A6,Tabella1[],2,FALSE)","v":"Diego Conticini"},{"v":40,"d":"40.00"},{"v":0,"d":"0.00"},{"v":0,"d":"0.00"},null,null,{"$f":"(VLOOKUP(A6,Tabella1[],3,FALSE)*(Tabella2[[#This Row],[Ore di lavoro ]]+Tabella2[[#This Row],[Ore di ferie]]+Tabella2[[#This Row],[Ore di malattia]])+Tabella2[[#This Row],[Ore di straordinario]]*Tabella2[[#This Row],[Tariffa straordinario]])","v":{"v":520,"d":"€ 520.00"}},{"$f":"VLOOKUP(A6,Tabella1[],10,FALSE)*Tabella2[[#This Row],[Retribuzione lorda]]+Tabella1[[#This Row],[Totale detrazioni \n(escluse le imposte)]]","v":{"v":269.86,"d":"€ 269.86"}},{"v":52,"d":"€ 52.00"},{"$f":"Tabella2[[#This Row],[Retribuzione lorda]]-Tabella2[[#This Row],[Imposte e trattenute ]]-Tabella2[[#This Row],[Altre trattenute]]","v":{"v":198.14,"d":"€ 198.14"}}]
[3,{"$f":"VLOOKUP(A7,Tabella1[],2,FALSE)","v":"Francesca Bianchi"},{"v":52,"d":"52.00"},{"v":0,"d":"0.00"},{"v":0,"d":"0.00"},{"v":2,"d":"2.00"},{"v":20,"d":"€ 20.00"},{"$f":"(VLOOKUP(A7,Tabella1[],3,FALSE)*(Tabella2[[#This Row],[Ore di lavoro ]]+Tabella2[[#This Row],[Ore di ferie]]+Tabella2[[#This Row],[Ore di malattia]])+Tabella2[[#This Row],[Ore di straordinario]]*Tabella2[[#This Row],[Tariffa straordinario]])","v":{"v":560,"d":"€ 560.00"}},{"$f":"VLOOKUP(A7,Tabella1[],10,FALSE)*Tabella2[[#This Row],[Retribuzione lorda]]+Tabella1[[#This Row],[Totale detrazioni \n(escluse le imposte)]]","v":{"v":233.08000000000004,"d":"€ 233.08"}},{"v":20,"d":"€ 20.00"},{"$f":"Tabella2[[#This Row],[Retribuzione lorda]]-Tabella2[[#This Row],[Imposte e trattenute ]]-Tabella2[[#This Row],[Altre trattenute]]","v":{"v":306.91999999999996,"d":"€ 306.92"}}]

{"sheet":"Singole buste paga","index":2,"n_rows":48,"n_cols":8,"rows_kept":48,"merged":[[1,2,1,7],[13,2,13,7],[25,2,25,7],[38,2,38,7]]}
[]
[null,null,{"$f":"('Informazioni sui dipendenti'!$A$3)","v":"[Nome società]"}]
[null,null,"Periodo:",{"$f":"'Calcolatore buste paga'!$K$2","v":{"v":45688,"d":"4568800.00%"}},"Nome dipendente",{"$f":"IFERROR(VLOOKUP(H3,Tabella1[],2),\"\")","v":"Raffaele Romani"},"ID dipendente",1]
[]
[null,null,"Regime fiscale",{"$f":"IFERROR(VLOOKUP(H3,Tabella1[],4),\"\")","v":1},"Indennità federale (da W-4)",{"$f":"IFERROR(VLOOKUP(H3,Tabella1[],5,FALSE),\"\")","v":4},"Ore lavorate",{"$f":"IFERROR(VLOOKUP(H3,Tabella2[],3,FALSE),\"\")","v":50}]
[null,null,"Tariffa oraria",{"$f":"IFERROR(VLOOKUP(H3,Tabella1[],3,FALSE),\"\")","v":{"v":10,"d":"€ 10.00"}},"Tariffa straordinario",{"$f":"IFERROR(VLOOKUP(H3,Tabella2[],7,FALSE),\"\")","v":0},"Ore di malattia",{"$f":"IFERROR(VLOOKUP(H3,Tabella2[],5,FALSE),\"\")","v":1}]
[null,null,"Contributo previdenziale",{"$f":"IFERROR(IFERROR(VLOOKUP(H3,Tabella1[],8,FALSE),\"\")*H9,\"\")","v":{"v":35.28,"d":"€ 35.28"}},"Imposta federale sul reddito ",{"$f":"IFERROR(IFERROR(VLOOKUP(H3,Tabella1[],7,FALSE),\"\")*H9,\"\")","v":{"v":156.8,"d":"€ 156.80"}},"Ore di ferie",{"$f":"IFERROR(VLOOKUP(H3,Tabella2[],4,FALSE),\"\")","v":5}]
[null,null,"Contributo per assicurazione sanitaria ",{"$f":"IFERROR(IFERROR(VLOOKUP(H3,Tabella1[],9,FALSE),\"\")*H9,\"\")","v":{"v":8.120000000000001,"d":"€ 8.12"}},"Imposta statale ",{"$f":"IFERROR(IFERROR(VLOOKUP(H3,Tabella1[],6,FALSE),\"\")*H9,\"\")","v":{"v":12.879999999999999,"d":"€ 12.88"}},"Ore di straordinario",{"$f":"IFERROR(VLOOKUP(H3,Tabella2[],6,FALSE),\"\")","v":0}]
[null,null,"Trattenute assicurative",{"$f":"IFERROR(VLOOKUP(H3,Tabella1[],11,FALSE),\"\")","v":{"v":20,"d":"€ 20.00"}},"Altre trattenute regolari",{"$f":"IFERROR(VLOOKUP(H3,Tabella1[],12,FALSE),\"\")","v":{"v":40,"d":"€ 40.00"}},"Paga lorda",{"$f":"IFERROR(VLOOKUP(H3,Tabella2[],8,FALSE),\"\")","v":{"v":560,"d":"€ 560.00"}}]
[null,null,"Totale imposte e trattenute regolari ",{"$f":"IFERROR(SUM(F7:F9)+SUM(D7:D9),\"\")","v":{"v":273.08000000000004,"d":"€ 273.08"}},"Altre trattenute",{"$f":"IFERROR(VLOOKUP(H3,Tabella2[],10,FALSE),\"\")","v":{"v":20,"d":"€ 20.00"}},"Totale imposte e trattenute ",{"$f":"IFERROR(IFERROR(VLOOKUP(H3,Tabella2[],9,FALSE),\"\")+F10,\"\")","v":{"v":293.08000000000004,"d":"€ 293.08"}}]
[{"$nulls":6},"Paga netta",{"$f":"IFERROR(VLOOKUP(H3,Tabella2[],11,FALSE),\"\")","v":{"v":266.91999999999996,"d":"€ 266.92"}}]
[]
[]
[null,null,{"$f":"('Informazioni sui dipendenti'!$A$3)","v":"[Nome società]"}]
[null,null,"Periodo:",{"$f":"'Calcolatore buste paga'!$K$2","v":{"v":45688,"d":"4568800.00%"}},"Nome dipendente",{"$f":"IFERROR(VLOOKUP(H15,Tabella1[],2),\"\")","v":"Diego Conticini"},"ID dipendente",2]
[]
[null,null,"Regime fiscale",{"$f":"IFERROR(VLOOKUP(H15,Tabella1[],4),\"\")","v":1},"Indennità federale (da W-4)",{"$f":"IFERROR(VLOOKUP(H15,Tabella1[],5,FALSE),\"\")","v":4},"Ore lavorate",{"$f":"IFERROR(VLOOKUP(H15,Tabella2[],3,FALSE),\"\")","v":40}]
[null,null,"Tariffa oraria",{"$f":"IFERROR(VLOOKUP(H15,Tabella1[],3,FALSE),\"\")","v":{"v":13,"d":"€ 13.00"}},"Tariffa straordinario",{"$f":"IFERROR(VLOOKUP(H15,Tabella2[],7,FALSE),\"\")","v":0},"Ore di malattia",{"$f":"IFERROR(VLOOKUP(H15,Tabella2[],5,FALSE),\"\")","v":0}]
[null,null,"Contributo previdenziale",{"$f":"IFERROR(IFERROR(VLOOKUP(H15,Tabella1[],8,FALSE),\"\")*H21,\"\")","v":{"v":32.76,"d":"€ 32.76"}},"Imposta federale sul reddito ",{"$f":"IFERROR(IFERROR(VLOOKUP(H15,Tabella1[],7,FALSE),\"\")*H21,\"\")","v":{"v":145.60000000000002,"d":"€ 145.60"}},"Ore di ferie",{"$f":"IFERROR(VLOOKUP(H15,Tabella2[],4,FALSE),\"\")","v":0}]
[null,null,"Contributo per assicurazione sanitaria ",{"$f":"IFERROR(IFERROR(VLOOKUP(H15,Tabella1[],9,FALSE),\"\")*H21,\"\")","v":{"v":7.54,"d":"€ 7.54"}},"Imposta statale ",{"$f":"IFERROR(IFERROR(VLOOKUP(H15,Tabella1[],6,FALSE),\"\")*H21,\"\")","v":{"v":11.959999999999999,"d":"€ 11.96"}},"Ore di straordinario",{"$f":"IFERROR(VLOOKUP(H15,Tabella2[],6,FALSE),\"\")","v":0}]
[null,null,"Trattenute assicurative",{"$f":"IFERROR(VLOOKUP(H15,Tabella1[],11,FALSE),\"\")","v":{"v":20,"d":"€ 20.00"}},"Altre trattenute regolari",{"$f":"IFERROR(VLOOKUP(H15,Tabella1[],12,FALSE),\"\")","v":{"v":52,"d":"€ 52.00"}},"Paga lorda",{"$f":"IFERROR(VLOOKUP(H15,Tabella2[],8,FALSE),\"\")","v":{"v":520,"d":"€ 520.00"}}]
[null,null,"Totale imposte e trattenute regolari ",{"$f":"IFERROR(SUM(F19:F21)+SUM(D19:D21),\"\")","v":{"v":269.86,"d":"€ 269.86"}},"Altre trattenute",{"$f":"IFERROR(VLOOKUP(H15,Tabella2[],10,FALSE),\"\")","v":{"v":52,"d":"€ 52.00"}},"Totale imposte e trattenute ",{"$f":"IFERROR(IFERROR(VLOOKUP(H15,Tabella2[],9,FALSE),\"\")+F22,\"\")","v":{"v":321.86,"d":"€ 321.86"}}]
[{"$nulls":6},"Paga netta",{"$f":"IFERROR(VLOOKUP(H15,Tabella2[],11,FALSE),\"\")","v":{"v":198.14,"d":"€ 198.14"}}]
[]
[]
[null,null,{"$f":"('Informazioni sui dipendenti'!$A$3)","v":"[Nome società]"}]
[null,null,"Periodo:",{"$f":"'Calcolatore buste paga'!$K$2","v":{"v":45688,"d":"4568800.00%"}},"Nome dipendente",{"$f":"IFERROR(VLOOKUP(H27,Tabella1[],2),\"\")","v":"Francesca Bianchi"},"ID dipendente",3]
[]
[null,null,"Regime fiscale",{"$f":"IFERROR(VLOOKUP(H27,Tabella1[],4),\"\")","v":1},"Indennità federale (da W-4)",{"$f":"IFERROR(VLOOKUP(H27,Tabella1[],5,FALSE),\"\")","v":4},"Ore lavorate",{"$f":"IFERROR(VLOOKUP(H27,Tabella2[],3,FALSE),\"\")","v":52}]
[null,null,"Tariffa oraria",{"$f":"IFERROR(VLOOKUP(H27,Tabella1[],3,FALSE),\"\")","v":{"v":10,"d":"€ 10.00"}},"Tariffa straordinario",{"$f":"IFERROR(VLOOKUP(H27,Tabella2[],7,FALSE),\"\")","v":{"v":20,"d":"€ 20.00"}},"Ore di malattia",{"$f":"IFERROR(VLOOKUP(H27,Tabella2[],5,FALSE),\"\")","v":0}]
[null,null,"Contributo previdenziale",{"$f":"IFERROR(IFERROR(VLOOKUP(H27,Tabella1[],8,FALSE),\"\")*H33,\"\")","v":{"v":35.28,"d":"€ 35.28"}},"Imposta federale sul reddito ",{"$f":"IFERROR(IFERROR(VLOOKUP(H27,Tabella1[],7,FALSE),\"\")*H33,\"\")","v":{"v":156.8,"d":"€ 156.80"}},"Ore di ferie",{"$f":"IFERROR(VLOOKUP(H27,Tabella2[],4,FALSE),\"\")","v":0}]
[null,null,"Contributo per assicurazione sanitaria ",{"$f":"IFERROR(IFERROR(VLOOKUP(H27,Tabella1[],9,FALSE),\"\")*H33,\"\")","v":{"v":8.120000000000001,"d":"€ 8.12"}},"Imposta statale ",{"$f":"IFERROR(IFERROR(VLOOKUP(H27,Tabella1[],6,FALSE),\"\")*H33,\"\")","v":{"v":12.879999999999999,"d":"€ 12.88"}},"Ore di straordinario",{"$f":"IFERROR(VLOOKUP(H27,Tabella2[],6,FALSE),\"\")","v":2}]
[null,null,"Trattenute assicurative",{"$f":"IFERROR(VLOOKUP(H27,Tabella1[],11,FALSE),\"\")","v":{"v":20,"d":"€ 20.00"}},"Altre trattenute regolari",{"$f":"IFERROR(VLOOKUP(H27,Tabella1[],12,FALSE),\"\")","v":0},"Paga lorda",{"$f":"IFERROR(VLOOKUP(H27,Tabella2[],8,FALSE),\"\")","v":{"v":560,"d":"€ 560.00"}}]
[null,null,"Totale imposte e trattenute regolari ",{"$f":"IFERROR(SUM(F31:F33)+SUM(D31:D33),\"\")","v":{"v":233.08,"d":"€ 233.08"}},"Altre trattenute",{"$f":"IFERROR(VLOOKUP(H27,Tabella2[],10,FALSE),\"\")","v":{"v":20,"d":"€ 20.00"}},"Totale imposte e trattenute ",{"$f":"IFERROR(IFERROR(VLOOKUP(H27,Tabella2[],9,FALSE),\"\")+F34,\"\")","v":{"v":253.08000000000004,"d":"€ 253.08"}}]
[{"$nulls":6},"Paga netta",{"$f":"IFERROR(VLOOKUP(H27,Tabella2[],11,FALSE),\"\")","v":{"v":306.91999999999996,"d":"€ 306.92"}}]
[]
[]
[]
[null,null,{"$f":"('Informazioni sui dipendenti'!$A$3)","v":"[Nome società]"}]
[null,null,"Periodo:",{"$f":"'Calcolatore buste paga'!$K$2","v":{"v":45688,"d":"4568800.00%"}},"Nome dipendente",{"$f":"IFERROR(VLOOKUP(H40,Tabella1[],2),\"\")","v":""},"ID dipendente"]
[]
[null,null,"Regime fiscale",{"$f":"IFERROR(VLOOKUP(H40,Tabella1[],4),\"\")","v":""},"Indennità federale (da W-4)",{"$f":"IFERROR(VLOOKUP(H40,Tabella1[],5,FALSE),\"\")","v":""},"Ore lavorate",{"$f":"IFERROR(VLOOKUP(H40,Tabella2[],3,FALSE),\"\")","v":""}]
[null,null,"Tariffa oraria",{"$f":"IFERROR(VLOOKUP(H40,Tabella1[],3,FALSE),\"\")","v":""},"Tariffa straordinario",{"$f":"IFERROR(VLOOKUP(H40,Tabella2[],7,FALSE),\"\")","v":""},"Ore di malattia",{"$f":"IFERROR(VLOOKUP(H40,Tabella2[],5,FALSE),\"\")","v":""}]
[null,null,"Contributo previdenziale",{"$f":"IFERROR(IFERROR(VLOOKUP(H40,Tabella1[],8,FALSE),\"\")*H46,\"\")","v":""},"Imposta federale sul reddito ",{"$f":"IFERROR(IFERROR(VLOOKUP(H40,Tabella1[],7,FALSE),\"\")*H46,\"\")","v":""},"Ore di ferie",{"$f":"IFERROR(VLOOKUP(H40,Tabella2[],4,FALSE),\"\")","v":""}]
[null,null,"Contributo per assicurazione sanitaria ",{"$f":"IFERROR(IFERROR(VLOOKUP(H40,Tabella1[],9,FALSE),\"\")*H46,\"\")","v":""},"Imposta statale ",{"$f":"IFERROR(IFERROR(VLOOKUP(H40,Tabella1[],6,FALSE),\"\")*H46,\"\")","v":""},"Ore di straordinario",{"$f":"IFERROR(VLOOKUP(H40,Tabella2[],6,FALSE),\"\")","v":""}]
[null,null,"Trattenute assicurative",{"$f":"IFERROR(VLOOKUP(H40,Tabella1[],11,FALSE),\"\")","v":""},"Altre trattenute regolari",{"$f":"IFERROR(VLOOKUP(H40,Tabella1[],12,FALSE),\"\")","v":""},"Paga lorda",{"$f":"IFERROR(VLOOKUP(H40,Tabella2[],8,FALSE),\"\")","v":""}]
[null,null,"Totale imposte e trattenute regolari ",{"$f":"IFERROR(SUM(F44:F46)+SUM(D44:D46),\"\")","v":0},"Altre trattenute",{"$f":"IFERROR(VLOOKUP(H40,Tabella2[],10,FALSE),\"\")","v":""},"Totale imposte e trattenute ",{"$f":"IFERROR(IFERROR(VLOOKUP(H40,Tabella2[],9,FALSE),\"\")+F47,\"\")","v":""}]
[{"$nulls":6},"Paga netta",{"$f":"IFERROR(VLOOKUP(H40,Tabella2[],11,FALSE),\"\")","v":""}]